bitfinex-derivatives/quotes_SOLF0:USTF0_20240815
["timestamp","ask_amount","ask_price","bid_price","bid_amount"]
[1723749132700,3.6095,138.5,138.49,0.0555803]
[1723749132901,31.37,138.47,138.39,8.96]
[1723749133201,31.37,138.47,138.35,34.94298353]
[1723749133498,31.37,138.51,138.39,31.37]
[1723749133699,31.37,138.51,138.35,31.37]
[1723749133700,31.37,138.56,138.44,31.37]
[1723749133903,31.37,138.56,138.44,34.96789369]
[1723749134198,32.6371,138.58,138.46,31.37]
[1723749135402,31.37,138.61,138.49,31.37]
[1723749135701,31.37,138.64,138.53,31.37]
[1723749136097,31.37,138.64,138.51,31.37]
[1723749136293,0.04956755,138.53,138.51,31.37]
[1723749136500,31.37,138.63,138.51,31.37]
[1723749136801,31.37,138.65,138.55,34.9782]
[1723749137000,31.37,138.65,138.56,0.04822222]
[1723749137800,31.37,138.65,138.55,31.37]
[1723749138006,0.05168675,138.62,138.55,31.37]
[1723749138205,0.05168675,138.62,138.59,0.05371862]
[1723749138501,31.37,138.61,138.49,8.96]
[1723749138712,31.37,138.58,138.49,8.96]
[1723749139304,31.37,138.63,138.35,10.77060218]
[1723749139305,31.37,138.54,138.35,10.77060218]
[1723749139507,31.37,138.49,138.4,3.6121]
[1723749139803,31.37,138.49,138.37,31.37]
[1723749140007,3.6107,138.46,138.4,31.37]
[1723749140196,31.42262502,138.52,138.4,31.37]
[1723749140401,0.05262502,138.52,138.42,31.37]
[1723749140605,0.05262502,138.52,138.44,31.37]
[1723749140802,228.0,138.56,138.46,31.37]
[1723749141115,31.37,138.61,138.49,31.37]
[1723749141312,31.37,138.63,138.46,3.6306474]
[1723749141515,228.0,138.64,138.53,31.37]
[1723749141818,10.3316,138.65,138.53,31.37]
[1723749142023,31.37,138.67,138.53,35.00642409]
[1723749142316,0.04963775,138.56,138.55,3.6082]
[1723749142522,31.37,138.67,138.55,31.37]
[1723749142722,8.96,138.69,138.58,3.6073]
[1723749143028,3.67613881,138.73,138.58,31.37]
[1723749143227,0.74697601,138.69,138.56,8.96]
[1723749143427,31.37,138.67,138.56,8.96]
[1723749143630,3.6064,138.63,138.58,3.6074]
[1723749143828,3.6064,138.63,138.56,8.96]
[1723749144029,31.37,138.67,138.57,31.37]
[1723749144328,0.05361062,138.64,138.61,0.04767108]
[1723749146028,259.37,138.74,138.62,31.37]
[1723749146328,5.96915384,138.73,138.62,31.37]
[1723749146532,31.37,138.74,138.62,31.37]
[1723749146724,0.74674092,138.73,138.62,31.37]
[1723749147032,31.37,138.74,138.62,31.37]
[1723749147234,31.37,138.77,138.66,31.37]
[1723749147526,31.37,138.82,138.69,31.37]
[1723749147727,5.97359133,138.8,138.71,31.37]
[1723749147924,0.05179522,138.73,138.72,3.6036]
[1723749148130,3.6027,138.77,138.71,31.37]
[1723749148320,1.3747,138.81,138.74,3.6033]
[1723749148524,25.2193,138.95,138.74,3.6033]
[1723749148525,5.22843083,138.8,138.76,31.37]
[1723749148724,29.25093876,138.91,138.78,31.37]
[1723749149025,33.88198553,138.9,138.78,31.37]
[1723749149228,5.97914677,138.89,138.78,31.37]
[1723749149432,5.97914677,138.88,138.81,34.9713]
[1723749149624,5.23107416,138.87,138.83,31.37]
[1723749149829,31.37,138.96,138.84,9.02]
[1723749149830,27.89327936,138.95,138.84,9.02]
[1723749150026,5.23053405,138.94,138.88,31.37]
[1723749150221,5.23053405,138.93,138.9,31.37]
[1723749150447,1.3,139.04,138.92,31.37]
[1723749150642,3.5976,138.96,138.92,40.39]
[1723749150837,29.16812919,139.04,138.87,31.37]
[1723749151042,31.37,138.99,138.87,31.37]
[1723749151231,3.5996,138.89,138.86,9.02]
[1723749151529,31.37,138.97,138.86,9.02]
[1723749151831,5.23383486,138.96,138.9,31.37]
[1723749152033,31.37,139.01,138.9,31.37]
[1723749152338,5.23480658,139.0,138.9,31.37]
[1723749152630,31.37,138.91,138.88,0.04857092]
[1723749152836,31.37,138.91,138.78,31.37]
[1723749153032,31.37,138.91,138.73,9.02]
[1723749153033,31.37,138.88,138.76,31.37]
[1723749153435,5.23377539,138.87,138.81,31.37]
[1723749153630,31.41845086,138.93,138.83,31.37]
[1723749153826,5.23444539,138.92,138.8,31.37]
[1723749154031,5.23444539,138.91,138.8,31.37]
[1723749154228,5.23444539,138.9,138.8,31.37]
[1723749154428,5.23444539,138.89,138.8,31.37]
[1723749154641,5.23444539,138.88,138.8,31.37]
[1723749154855,31.37,138.91,138.87,0.04759105]
[1723749155139,3.5997,138.88,138.87,0.04759105]
[1723749155332,8.8339216,138.88,138.87,0.04759105]
[1723749155723,5.2342216,138.88,138.75,31.37]
[1723749155937,0.04893571,138.85,138.75,31.37]
[1723749156659,0.04893571,138.85,138.78,31.37]
[1723749156833,40.39,138.91,138.78,31.37]
[1723749157039,31.37,138.91,138.78,31.37]
[1723749157334,3.601,138.83,138.8,31.37]
[1723749158130,0.04949468,138.83,138.78,31.42261512]
[1723749158541,3.6017,138.8,138.78,31.42261512]
[1723749158743,0.04949468,138.83,138.78,0.05261512]
[1723749159133,3.602,138.79,138.78,0.05261512]
[1723749159534,3.6031,138.75,138.71,31.37]
[1723749159744,31.37,138.82,138.71,31.37]
[1723749160042,3.6032,138.75,138.73,31.37]
[1723749160235,31.37,138.85,138.71,31.37]
[1723749160429,31.37,138.85,138.71,34.97582425]
[1723749160630,3.6033,138.75,138.71,31.37]
[1723749160827,31.37,138.85,138.71,31.37]
[1723749161034,0.05341072,138.79,138.77,0.04670794]
[1723749161235,3.6023,138.78,138.77,0.04670794]
[1723749161539,0.05341072,138.79,138.77,0.04670794]
[1723749161738,3.6023,138.78,138.77,0.04670794]
[1723749162638,3.6036,138.73,138.71,31.37]
[1723749162832,0.04842152,138.79,138.71,31.37]
[1723749163035,0.04842152,138.79,138.76,0.04934556]
[1723749163230,31.37,138.8,138.76,0.04934556]
[1723749163745,3.6025,138.77,138.76,0.04934556]
[1723749164247,3.6025,138.78,138.76,0.04934556]
[1723749164630,0.05038431,138.79,138.76,0.04934556]
[1723749165141,1.3059,138.87,138.78,31.37]
[1723749165341,1.3059,138.87,138.76,31.41934556]
[1723749165545,31.37,138.85,138.74,40.39]
[1723749165731,31.37,138.83,138.72,31.37]
[1723749165930,31.37,138.83,138.7,32.6467]
[1723749165931,31.37,138.8,138.7,32.6467]
[1723749166348,31.37,138.8,138.69,9.02]
[1723749166349,0.74772898,138.79,138.69,9.02]
[1723749166639,31.37,138.8,138.69,9.02]
[1723749166839,0.04839481,138.76,138.74,0.04961741]
[1723749167234,3.603,138.75,138.74,0.04961741]
[1723749170044,0.04839481,138.76,138.74,0.04961741]
[1723749170731,3.603,138.75,138.74,0.04961741]
[1723749172840,0.04839481,138.76,138.74,0.04961741]
[1723749173541,0.04839481,138.76,138.75,3.603]
[1723749173744,302.94198239,138.98,138.74,31.41961741]
[1723749173947,40.39,138.89,138.77,31.37]
[1723749174240,3.6017,138.81,138.77,31.37]
[1723749174438,3.60222058,138.88,138.75,31.37]
[1723749174644,31.37,138.84,138.75,31.37]
[1723749174838,3.6027,138.77,138.75,31.37]
[1723749175243,0.05013393,138.82,138.76,3.66636577]
[1723749175453,0.05013393,138.82,138.79,31.37]
[1723749175641,32.6895,138.9,138.79,31.37]
[1723749176138,0.04602882,138.82,138.79,31.37]
[1723749176337,0.04602882,138.82,138.81,31.37]
[1723749176938,1.3195,138.9,138.81,31.37]
[1723749177138,1.3728,138.93,138.83,31.37]
[1723749177345,3.5999,138.87,138.83,31.37]
[1723749177941,31.37,138.92,138.81,31.37]
[1723749178350,31.37,138.92,138.84,0.05306075]
[1723749178540,0.05471066,138.86,138.78,8.66]
[1723749178844,31.37,138.85,138.74,31.37]
[1723749179243,31.37,138.87,138.76,31.37]
[1723749179439,31.37,138.87,138.76,35.05965235]
[1723749179746,31.37,138.87,138.76,31.37]
[1723749180246,31.37,138.87,138.76,34.98111024]
[1723749180450,0.05043981,138.83,138.8,0.05104477]
[1723749180747,0.05043981,138.83,138.81,34.9713]
[1723749180951,1.0,138.91,138.81,31.37]
[1723749181139,1.0,138.91,138.76,34.98111024]
[1723749181140,31.37,138.89,138.77,31.37]
[1723749181452,0.05467595,138.83,138.81,0.05179662]
[1723749181649,3.6012,138.82,138.81,0.05179662]
[1723749182147,3.6003,138.86,138.81,3.65319662]
[1723749182350,0.05544031,138.83,138.81,0.05179662]
[1723749182646,0.05544031,138.83,138.8,34.9716]
[1723749182841,3.6006,138.85,138.8,34.9716]
[1723749183041,31.37,138.92,138.8,31.37]
[1723749183256,1.3728,138.93,138.82,34.9711]
[1723749183545,0.04556884,138.83,138.81,0.05456781]
[1723749183846,0.04556884,138.83,138.78,3.54416928]
[1723749184143,1.3728,138.93,138.82,31.37]
[1723749184350,1.3728,138.93,138.85,31.37]
[1723749184546,1.3728,138.93,138.82,40.01]
[1723749184738,3.6001,138.87,138.82,40.01]
[1723749185049,0.04807907,138.88,138.85,31.37]
[1723749185250,0.04807907,138.88,138.87,31.37]
[1723749185576,0.04807907,138.88,138.86,0.04913366]
[1723749186055,3.5999,138.87,138.86,0.04913366]
[1723749186346,3.6006,138.85,138.79,31.37]
[1723749186649,3.6006,138.85,138.81,31.37]
[1723749186949,3.6006,138.85,138.81,34.9714]
[1723749187247,31.37,138.9,138.79,31.37]
[1723749187446,31.37,138.9,138.8,3.6015]
[1723749187751,0.05284198,138.84,138.82,0.04700562]
[1723749188143,31.37,138.92,138.81,34.9712]
[1723749188346,31.37,138.97,138.84,31.37]
[1723749188553,0.74785347,138.95,138.86,34.97]
[1723749188744,0.0549471,138.88,138.86,31.37]
[1723749188945,31.37,138.97,138.83,3.6008]
[1723749189145,31.37,138.94,138.83,31.37]
[1723749189351,3.6002,138.87,138.86,0.04546597]
[1723749189646,0.04777049,138.88,138.86,0.04546597]
[1723749189950,3.5988,138.92,138.87,31.37]
[1723749190151,32.6877,138.98,138.88,3.5996]
[1723749190350,3.5988,138.92,138.87,34.92199211]
[1723749190544,32.6877,138.98,138.82,9.9818]
[1723749190545,0.05268732,138.91,138.85,31.37]
[1723749190851,3.65168732,138.91,138.85,31.37]
[1723749191245,0.05268732,138.91,138.87,0.04817561]
[1723749191445,3.5997,138.88,138.87,0.04817561]
[1723749191748,31.37,138.88,138.78,31.37]
[1723749192047,3.6009,138.84,138.78,35.0112689]
[1723749192250,31.37,138.88,138.78,31.37]
[1723749192648,32.6815,138.91,138.81,31.37]
[1723749192846,1.3115,138.91,138.81,31.37]
[1723749193045,0.04735812,138.84,138.83,31.37]
[1723749193247,228.0,138.94,138.83,31.37]
[1723749193444,0.04638055,138.85,138.83,34.90336608]
[1723749193753,1.3115,138.97,138.83,34.90336608]
[1723749193754,32.6815,138.97,138.83,34.90336608]
[1723749194048,38.61215343,139.05,138.87,0.05002531]
[1723749194249,31.37,139.02,138.89,31.37]
[1723749194461,31.37,139.0,138.9,8.64]
[1723749194656,31.37,139.0,138.88,3.5995]
[1723749194849,31.37,138.98,138.87,60.22002531]
[1723749195045,31.37,138.98,138.87,60.17]
[1723749195250,0.0472119,138.96,138.87,28.8]
[1723749195549,31.37,138.95,138.91,0.04746032]
[1723749195747,0.0472119,138.96,138.91,0.04746032]
[1723749195946,1.3598,138.97,138.91,0.04746032]
[1723749196146,1.3598,138.97,138.87,31.37]
[1723749196147,2.6974,138.99,138.9,3.599]
[1723749196348,0.04559753,138.95,138.9,3.599]
[1723749196549,0.04559753,138.95,138.93,0.04812213]
[1723749197149,0.04559753,138.95,138.92,31.37]
[1723749197451,0.04559753,138.95,138.93,0.04616784]
[1723749197647,2.6974,138.99,138.93,0.04616784]
[1723749197852,3.5976,138.96,138.89,31.37]
[1723749198158,0.0498151,138.95,138.89,31.37]
[1723749198561,0.0498151,138.95,138.91,0.05449869]
[1723749198859,0.0498151,138.95,138.91,3.65329869]
[1723749199052,0.0498151,138.95,138.91,0.05449869]
[1723749200556,3.5986,138.93,138.91,0.05449869]
[1723749200759,0.0498151,138.95,138.91,0.05449869]
[1723749201155,3.5986,138.92,138.91,0.05449869]
[1723749203455,3.5985,138.93,138.91,0.05449869]
[1723749203656,0.0498151,138.95,138.91,0.05449869]
[1723749203861,0.0498151,138.95,138.91,31.42449869]
[1723749204656,8.46,139.04,138.94,31.37]
[1723749204855,31.37,139.09,138.97,31.37]
[1723749205058,3.5959,139.03,138.98,3.597]
[1723749205662,3.5959,139.03,138.99,3.5967]
[1723749205859,31.37,139.09,138.99,0.05482948]
[1723749206057,0.04644328,139.02,138.99,0.05482948]
[1723749206362,3.5958,139.03,138.97,34.94014654]
[1723749206559,0.05298491,139.02,138.99,0.05135623]
[1723749206965,2.5562,139.1,138.97,31.37]
[1723749207158,0.05016903,139.02,138.99,0.05205222]
[1723749207656,31.37,139.09,138.99,0.05214986]
[1723749207861,0.0538596,139.02,138.98,3.597]
[1723749208061,31.37,139.09,138.97,34.88871284]
[1723749208257,31.37,139.09,139.03,0.05532694]
[1723749208458,0.0506758,139.04,139.03,0.05532694]
[1723749208863,31.37,139.09,139.03,0.05532694]
[1723749209256,3.5957,139.04,139.03,0.05532694]
[1723749209568,0.0514629,139.05,139.03,0.05532694]
[1723749210054,2.5562,139.1,139.03,0.05532694]
[1723749210460,8.46,139.21,139.04,31.37]
[1723749210760,8.46,139.21,139.07,31.37]
[1723749210761,3.29255223,139.17,139.07,31.37]
[1723749210950,0.69385223,139.16,139.07,31.37]
[1723749211465,3.6346229,139.23,139.12,31.37]
[1723749211668,0.69419967,139.22,139.12,31.37]
[1723749211956,0.05453686,139.13,139.12,31.37]
[1723749212163,0.05453686,139.13,139.1,0.05084769]
[1723749212356,0.05453686,139.13,139.11,31.37]
[1723749212553,0.69419998,139.2,139.11,34.99789851]
[1723749212767,1.0,139.21,139.11,34.99789851]
[1723749213060,0.04590988,139.13,139.11,31.41897078]
[1723749213565,0.69428394,139.2,139.06,9.7916]
[1723749213792,31.37,139.15,139.04,1.2864]
[1723749214058,0.05259794,139.13,139.11,0.0545743]
[1723749214465,31.42259794,139.13,139.0,31.37]
[1723749214663,31.37,139.09,138.96,31.37]
[1723749214857,31.37,139.12,138.99,31.37]
[1723749215665,8.46,139.11,138.99,31.37]
[1723749215967,8.46,139.13,139.04,31.37]
[1723749216275,0.04942302,139.07,139.04,35.0207265]
[1723749216757,0.04942302,139.07,139.04,38.6160265]
[1723749216958,1.2763,139.14,139.06,31.37]
[1723749217157,8.46,139.17,139.06,31.37]
[1723749217364,8.46,139.17,139.06,34.97297683]
[1723749217558,8.46,139.17,139.11,31.37]
[1723749217871,4.92477653,139.24,139.11,39.83]
[1723749218058,0.69441271,139.23,139.11,43.4235]
[1723749218259,0.05066765,139.15,139.11,39.83]
[1723749218758,0.05066765,139.15,139.07,2.3528]
[1723749218759,31.37,139.2,139.08,8.46]
[1723749218961,0.04924181,139.14,139.12,0.05153936]
[1723749219164,3.5933,139.13,139.12,0.05153936]
[1723749219363,31.37,139.2,139.12,0.05153936]
[1723749219561,3.5929,139.15,139.12,0.05153936]
[1723749219758,0.05415825,139.14,139.12,0.05153936]
[1723749219960,0.05415825,139.14,139.12,31.42153936]
[1723749220163,1.3329,139.19,139.12,0.05153936]
[1723749220462,0.05292424,139.14,139.12,0.05153936]
[1723749220661,3.64602424,139.14,139.12,0.05153936]
[1723749220859,3.5931,139.14,139.12,0.05153936]
[1723749221169,0.0532799,139.14,139.12,0.05153936]
[1723749221564,0.0532799,139.14,139.05,4.80787289]
[1723749221863,31.37,139.17,139.05,4.80787289]
[1723749222064,3.5937,139.12,139.06,3.595]
[1723749222266,31.37,139.17,139.05,1.2891]
[1723749222565,3.5944,139.09,139.05,1.2891]
[1723749222869,0.05209943,139.12,139.1,0.04591827]
[1723749223258,35.61008284,139.15,139.04,31.37]
[1723749223569,35.61008284,139.15,139.1,0.04954458]
[1723749223570,0.05063222,139.12,139.1,0.04954458]
[1723749223775,0.05063222,139.12,139.03,8.46]
[1723749223776,31.42063222,139.12,139.03,8.46]
[1723749224065,0.69427216,139.11,139.03,8.46]
[1723749224264,0.69427216,139.11,139.01,31.37]
[1723749224458,0.69427216,139.11,139.0,1.2563]
[1723749224663,31.37,139.08,138.99,8.46]
[1723749224861,31.37,139.06,138.97,8.46]
[1723749225061,1.3097,139.07,138.98,31.37]
[1723749225365,32.37,139.1,139.02,0.04655885]
[1723749225366,0.05444708,139.05,139.02,0.04655885]
[1723749225762,0.05444708,139.05,139.03,8.46]
[1723749225964,0.69561387,139.09,139.03,39.83]
[1723749226171,3.62811811,139.13,139.06,31.37]
[1723749226564,0.69571142,139.12,139.06,31.37]
[1723749226870,1.3643,139.18,139.06,31.37]
[1723749227073,0.69576468,139.17,139.07,8.46]
[1723749227266,0.04780222,139.13,139.11,0.05205445]
[1723749227466,3.5934,139.12,139.11,0.05205445]
[1723749227659,0.04780222,139.13,139.11,0.05205445]
[1723749229762,45.78965343,139.31,139.12,31.05]
[1723749229964,45.78965343,139.31,139.11,0.05205445]
[1723749229965,3.5912,139.21,139.17,31.05]
[1723749230167,31.05,139.27,139.17,31.05]
[1723749230365,0.69431408,139.26,139.18,8.46]
[1723749230567,0.69431408,139.26,139.13,28.76]
[1723749230769,9.7232,139.31,139.17,31.05]
[1723749230770,1.93901408,139.25,139.17,31.05]
[1723749230963,0.69431408,139.24,139.17,31.05]
[1723749231175,0.05496467,139.21,139.18,0.05141855]
[1723749231471,0.05496467,139.21,139.18,3.59969426]
[1723749231669,0.05496467,139.21,139.19,31.05]
[1723749232069,0.05496467,139.21,139.18,0.05141855]
[1723749232378,0.05496467,139.21,139.19,8.46]
[1723749232670,0.05496467,139.21,139.19,12.03687068]
[1723749232877,0.05496467,139.21,138.9,71.53577074]
[1723749232878,70.56,139.2,138.9,71.53577074]
[1723749233265,0.05496467,139.21,139.03,31.05]
[1723749233266,9.8086,139.19,139.03,31.05]
[1723749233367,31.05,139.13,139.01,31.05]
[1723749233576,34.70228663,139.13,139.01,31.05]
[1723749233769,3.5945,139.09,139.01,38.24820933]
[1723749233971,8.34,139.08,139.01,34.65200933]
[1723749234475,8.34,139.09,139.01,34.65200933]
[1723749234978,0.05283144,139.06,139.04,0.05150652]
[1723749235168,1.3486,139.19,139.05,31.05]
[1723749235362,1.3486,139.19,139.04,39.44150652]
[1723749235363,1.3486,139.19,139.08,31.05]
[1723749236072,1.3486,139.19,139.06,32.3701]
[1723749236073,31.05,139.18,139.06,32.3701]
[1723749236676,1.3486,139.19,139.08,31.05]
[1723749236872,1.3486,139.19,139.1,31.05]
[1723749237175,0.05242306,139.15,139.11,0.05391552]
[1723749237385,3.6770864,139.35,139.13,31.05]
[1723749237584,7.1735,139.39,139.11,0.05391552]
[1723749237585,2.487,139.3,139.18,31.05]
[1723749237982,31.05,139.29,139.18,31.05]
[1723749238581,31.05,139.29,139.18,39.39]
[1723749238784,31.05,139.29,139.18,31.05]
[1723749238982,31.05,139.29,139.17,8.34]
[1723749239182,0.04823893,139.25,139.22,0.05005567]
[1723749240177,3.63843893,139.25,139.22,0.05005567]
[1723749240383,0.04823893,139.25,139.22,0.05005567]
[1723749241279,3.5906,139.23,139.22,0.05005567]
[1723749241481,3.5906,139.23,138.65,21.64723739]
[1723749241482,31.05,139.23,139.1,8.34]
[1723749241777,3.5928,139.15,139.11,31.05]
[1723749241975,3.5928,139.15,139.1,9.6159]
[1723749242178,1.3486,139.22,139.07,2.1917]
[1723749242179,31.05,139.18,139.07,31.05]
[1723749242398,1.3486,139.22,139.04,34.68602816]
[1723749242399,31.05,139.16,139.04,34.68602816]
[1723749242586,31.05,139.16,139.04,31.05]
[1723749242791,29.05,139.16,139.04,31.05]
[1723749242986,3.5941,139.1,139.04,31.05]
[1723749243285,0.04944177,139.14,139.02,31.05]
[1723749243485,31.05,139.13,139.02,34.68423241]
[1723749243681,31.05,139.13,139.02,31.05]
[1723749243882,31.05,139.11,139.06,0.0511708]
[1723749244180,3.5947,139.07,139.06,0.0511708]
[1723749244581,3.5952,139.06,139.0,31.05]
[1723749244775,0.04649843,139.09,139.0,31.05]
[1723749244982,0.04649843,139.09,139.02,31.05]
[1723749245384,1.2786,139.13,139.05,0.04591403]
[1723749245884,3.595,139.06,139.05,0.04591403]
[1723749247886,0.05070105,139.07,138.97,31.05]
[1723749248091,31.05,139.07,138.95,34.6478]
[1723749248386,31.05,139.07,138.95,31.05]
[1723749248782,3.5965,139.01,138.95,34.6478]
[1723749249089,0.04593394,139.02,139.0,0.04946679]
[1723749249493,3.5965,139.01,138.95,34.6477]
[1723749249684,31.05,139.09,139.0,0.04983847]
[1723749249988,0.05011385,139.02,139.01,3.5963]
[1723749250198,1.3086,139.11,139.0,0.04983847]
[1723749250488,1.3086,139.11,139.01,1.334]
[1723749250689,1.3086,139.11,139.01,5.01410418]
[1723749251092,1.2486,139.15,139.06,31.05]
[1723749251300,1.2383,139.21,139.11,31.05]
[1723749251501,3.5932,139.13,139.11,31.05]
[1723749251704,1.2383,139.21,139.11,31.05]
[1723749251892,1.2383,139.21,139.06,8.34]
[1723749251893,31.05,139.18,139.06,8.34]
[1723749252094,31.05,139.16,139.05,31.05]
[1723749252299,3.67528867,139.15,139.05,31.05]
[1723749252499,8.34,139.16,139.05,34.6452]
[1723749252797,8.34,139.16,139.02,1.233]
[1723749252798,31.05,139.14,139.11,0.04716798]
[1723749253002,1.2475,139.13,139.02,31.05]
[1723749253308,31.05,139.12,139.01,1.334]
[1723749253501,1.2475,139.13,139.04,31.05]
[1723749253801,0.0469169,139.12,139.04,31.05]
[1723749254202,31.05,139.11,138.96,1.3054]
[1723749254403,31.05,139.09,138.99,31.05]
[1723749254704,1.3722169,139.12,139.01,31.05]
[1723749254909,0.0469169,139.12,139.07,0.05212772]
[1723749255099,1.0,139.11,139.08,34.6443]
[1723749255293,1.0,139.11,139.08,31.05]
[1723749255495,3.51163477,139.14,139.1,31.05]
[1723749255697,3.5929,139.15,139.1,31.05]
[1723749255910,1.3011,139.19,139.1,31.05]
[1723749256209,1.3011,139.19,139.1,34.6439]
[1723749256504,0.04913709,139.11,139.1,31.05]
[1723749256697,1.3011,139.19,139.1,31.05]
[1723749256903,1.3204,139.21,139.1,31.05]
[1723749257299,3.5926,139.16,139.13,0.05529319]
[1723749258212,0.05120588,139.16,139.13,0.05529319]
[1723749258817,3.5929,139.14,139.13,0.05529319]
[1723749260311,3.5947,139.08,139.02,8.34]
[1723749260500,31.05,139.15,139.02,8.34]
[1723749260704,32.3116,139.15,139.03,3.5957]
[1723749261006,32.3116,139.15,139.02,11.99896182]
[1723749261504,3.5949,139.07,139.02,8.34]
[1723749261910,0.04750834,139.11,139.08,0.04617104]
[1723749262212,31.05,139.13,139.02,8.34]
[1723749262407,31.05,139.13,139.03,3.5958]
[1723749262603,3.5946,139.08,139.03,3.5958]
[1723749263013,3.5946,139.08,139.02,11.9359]
[1723749263210,1.2616,139.15,139.02,11.9359]
[1723749263211,3.5943,139.09,139.07,0.04881067]
[1723749263411,1.2616,139.15,139.06,31.05]
[1723749263605,228.0,139.19,139.08,31.05]
[1723749263804,31.05,139.2,139.07,0.05330528]
[1723749263805,34.62939328,139.18,139.07,0.05330528]
[1723749264004,0.05161623,139.09,139.07,0.05330528]
[1723749264315,31.05,139.13,139.02,8.34]
[1723749264503,0.04601908,139.09,139.07,0.04978092]
[1723749265014,32.05,139.17,139.06,31.05]
[1723749265309,3.5932,139.13,139.06,31.05]
[1723749265704,0.05227614,139.09,139.07,0.04823923]
[1723749266215,31.05,139.15,139.05,8.32]
[1723749266410,3.5941,139.1,139.05,8.32]
[1723749266617,0.04688691,139.09,139.07,0.05152545]
[1723749268010,31.05,139.18,139.08,31.05]
[1723749268209,31.05,139.18,139.09,3.5941]
[1723749268210,3.593,139.14,139.09,3.5941]
[1723749268513,31.05,139.18,139.08,31.05]
[1723749268715,33.706,139.21,139.1,31.05]
[1723749268905,2.656,139.21,139.1,31.05]
[1723749269220,2.656,139.21,139.11,3.5935]
[1723749269409,0.04747383,139.16,139.14,0.04700915]
[1723749269714,3.5927,139.15,139.14,0.04700915]
[1723749270109,0.04747383,139.16,139.14,0.04700915]
[1723749270311,3.5927,139.15,139.14,0.04700915]
[1723749273017,0.04747383,139.16,139.14,0.04700915]
[1723749273416,3.5927,139.15,139.14,0.04700915]
[1723749273619,34.6427,139.15,139.14,0.04700915]
[1723749274712,3.594,139.1,139.07,1.2749]
[1723749275121,31.05,139.13,139.03,8.32]
[1723749275317,3.594,139.1,139.04,3.5955]
[1723749275620,3.594,139.1,139.03,11.8479382]
[1723749275621,31.05,139.11,139.03,8.32]
[1723749276020,31.05,139.11,138.95,7.38608078]
[1723749276021,31.05,139.07,138.96,8.32]
[1723749276316,34.6447,139.07,139.06,0.05433796]
[1723749276525,31.05,139.07,138.96,11.9175]
[1723749276725,34.67714461,139.07,138.96,8.32]
[1723749276914,34.67714461,139.07,138.97,3.5973]
[1723749277316,3.5955,139.04,138.97,3.5973]
[1723749277626,3.5955,139.04,138.96,8.32]
[1723749277627,31.05,139.09,138.96,8.32]
[1723749277823,31.05,139.09,138.97,31.05]
[1723749278320,31.05,139.09,138.96,8.32]
[1723749278321,0.05190681,139.02,138.99,0.052048]
[1723749278917,0.05190681,139.02,138.95,1.2749]
[1723749279117,3.5963,139.01,138.95,1.2749]
[1723749279511,0.05374739,139.02,138.99,0.05406048]
[1723749279721,3.5963,139.01,138.99,0.05406048]
[1723749279922,0.05374739,139.02,138.99,0.05406048]
[1723749280817,3.64994739,139.02,138.99,0.05406048]
[1723749281022,0.05374739,139.02,138.99,0.05406048]
[1723749281819,3.5966,139.0,138.99,0.05406048]
[1723749282015,0.05374739,139.02,138.99,0.05406048]
[1723749282211,31.10374739,139.02,138.99,0.05406048]
[1723749282411,34.6466,139.0,138.99,0.05406048]